bitfinex/quotes_ETHUSD_20250220
["timestamp","ask_amount","ask_price","bid_price","bid_amount"]
[1740062911586,3.63518,2750.9,2750.2,3.63605]
[1740062911587,3.63539,2750.8,2750.2,3.636]
[1740062911790,3.63546,2750.7,2750.1,0.7744]
[1740062912009,4.886434,2750.8,2750.2,0.7525]
[1740062912010,5.24,2750.8,2750.2,0.7525]
[1740062912177,5.24,2750.8,2750.3,3.63596]
[1740062912377,3.63558,2750.6,2749.9,3.6364]
[1740062912700,3.63558,2750.6,2750.0,3.63634]
[1740062913090,3.63558,2750.6,2749.9,3.6364]
[1740062913289,0.446678,2750.5,2749.9,7.2729]
[1740062913499,3.63596,2750.4,2749.7,4.39417]
[1740062913808,3.63598,2750.3,2749.7,3.64167]
[1740062914037,0.7971,2750.0,2749.7,0.005]
[1740062916417,4.43346,2750.0,2749.7,0.005]
[1740062916727,3.63636,2750.0,2749.7,0.005]
[1740062917039,3.63616,2750.2,2749.7,0.005]
[1740062917243,3.63616,2750.2,2749.7,3.64174]
[1740062917764,0.8033,2750.3,2749.7,3.64176]
[1740062917941,3.6361,2750.2,2749.7,3.64176]
[1740062918143,3.6365,2749.9,2749.7,0.005]
[1740062918347,5.24,2749.9,2749.7,0.005]
[1740062918642,8.87658,2749.9,2749.7,0.005]
[1740062919547,5.24,2749.9,2749.7,0.005]
[1740062920603,8.87657,2749.9,2749.7,0.005]
[1740062920903,0.887657,2749.8,2749.7,0.005]
[1740062921414,5.315377,2749.8,2749.7,0.005]
[1740062921627,10.555377,2749.8,2749.7,0.005]
[1740062922358,6.918757,2749.8,2749.7,0.005]
[1740062922538,10.555377,2749.8,2749.7,0.005]
[1740062923053,6.918757,2749.8,2749.7,0.005]
[1740062923519,6.127657,2749.8,2749.7,0.005]
[1740062923937,9.764277,2749.8,2749.7,0.005]
[1740062924117,6.127657,2749.8,2749.7,0.005]
[1740062924453,5.24,2749.8,2749.7,0.005]
[1740062925717,5.24,2749.8,2749.7,3.64176]
[1740062925963,10.111948,2750.5,2749.9,3.63642]
[1740062926149,10.111948,2750.5,2750.0,3.63633]
[1740062926347,6.476178,2750.5,2749.8,3.63654]
[1740062926545,6.476178,2750.5,2750.0,3.63628]
[1740062926747,6.476178,2750.5,2749.7,0.005]
[1740062926951,5.24,2750.5,2750.1,3.63615]
[1740062927117,5.24,2750.5,2749.9,0.7621]
[1740062927447,5.24,2751.0,2750.6,3.63545]
[1740062927646,8.87504,2751.0,2750.5,3.63569]
[1740062928025,5.24,2751.0,2750.4,3.63573]
[1740062928226,8.87504,2751.0,2750.4,3.63573]
[1740062928635,3.63525,2750.9,2750.2,3.63603]
[1740062928857,3.63532,2750.8,2750.2,3.63601]
[1740062929228,3.63525,2750.9,2750.2,7.27199]
[1740062929426,3.63531,2750.8,2750.3,3.63591]
[1740062929654,5.24,2751.0,2750.3,0.03635984]
[1740062929972,3.63541,2750.8,2750.2,3.63604]
[1740062930152,5.24,2751.0,2750.1,3.63622]
[1740062930322,3.63553,2750.7,2750.1,3.63622]
[1740062930523,3.63525,2750.9,2749.9,0.7621]
[1740062930818,3.63551,2750.7,2750.0,3.63636]
[1740062931039,0.7994,2750.6,2750.0,3.63625]
[1740062931232,5.24,2750.8,2750.0,3.63636]
[1740062931463,5.24,2750.8,2750.3,3.63584]
[1740062931665,5.24,2750.8,2750.5,3.63569]
[1740062931963,5.24,2750.9,2750.5,3.63569]
[1740062932460,8.87529,2750.9,2750.3,3.63584]
[1740062932797,5.24,2750.9,2750.4,3.63575]
[1740062932965,5.24,2750.9,2750.5,3.63567]
[1740062933121,5.24,2750.9,2750.7,3.6354]
[1740062933324,5.24,2750.9,2750.5,3.63561]
[1740062933520,3.63537,2750.8,2750.3,3.63587]
[1740062933725,3.63564,2750.6,2750.1,3.63621]
[1740062933953,0.7814,2750.7,2749.7,0.7771]
[1740062934149,3.63651,2749.9,2749.7,0.005]
[1740062934350,4.46731,2749.9,2749.7,0.005]
[1740062934519,8.87662,2749.8,2749.7,0.005]
[1740062934851,10.211013,2749.8,2749.7,0.005]
[1740062935446,10.969113,2749.8,2749.7,0.005]
[1740062935928,3.63715,2749.4,2749.3,0.1517811]
[1740062936262,4.39305,2749.4,2749.3,0.1517811]
[1740062936421,5.196057,2749.4,2749.3,0.1517811]
[1740062937233,13.436057,2749.4,2749.3,0.1517811]
[1740062938976,3.63855,2748.4,2748.2,0.005]
[1740062939186,4.43051,2748.3,2748.2,0.005]
[1740062940634,5.761416,2748.3,2748.2,0.005]
[1740062940881,14.015216,2748.3,2748.2,0.005]
[1740062941175,10.376606,2748.3,2748.2,0.005]
[1740062941341,9.68431,2748.3,2748.2,0.005]
[1740062941672,12.68431,2748.3,2748.2,0.005]
[1740062942036,6.0457,2748.3,2748.2,0.005]
[1740062942531,12.68431,2748.3,2748.2,0.005]
[1740062942732,6.0457,2748.3,2748.2,0.005]
[1740062942973,5.24,2748.3,2748.2,0.005]
[1740062943137,9.40261,2748.3,2748.2,0.005]
[1740062943336,13.15691,2748.3,2748.2,0.005]
[1740062944346,13.86752069,2748.3,2748.2,0.005]
[1740062945337,6.63874,2748.2,2748.1,1e-05]
[1740062945537,6.63874,2748.2,2746.5,3.7927211]
[1740062945538,0.7538,2747.1,2746.5,0.1517811]
[1740062945762,5.24,2747.0,2746.7,3.64071]
[1740062945970,5.24,2747.0,2746.5,0.1517811]
[1740062946171,6.203411,2747.0,2746.5,0.1517811]
[1740062946379,5.24,2747.0,2746.5,0.1517811]
[1740062946561,3.64086,2746.6,2746.5,0.1517811]
[1740062946766,12.68556,2746.6,2746.5,0.1517811]
[1740062946950,9.0447,2746.6,2746.5,0.1517811]
[1740062947152,6.0447,2746.6,2746.5,0.1517811]
[1740062947479,5.24,2746.6,2746.5,0.1517811]
[1740062947809,5.24,2747.0,2746.6,3.64073]
[1740062947978,5.24,2747.0,2746.8,3.64052]
[1740062948192,5.24,2747.0,2746.9,3.64046]
[1740062949085,5.24,2747.5,2747.4,3.6398]
[1740062949385,5.24,2748.0,2747.6,3.63948]
[1740062949549,5.24,2748.0,2746.9,0.7794]
[1740062949879,3.63932,2747.8,2747.0,3.64024]
[1740062950089,7.27868,2747.8,2747.0,3.64031]
[1740062950242,3.63932,2747.8,2747.0,3.64031]
[1740062950434,5.24,2747.8,2747.3,3.63984]
[1740062950860,5.24,2747.8,2746.9,0.7794]
[1740062951062,5.764,2747.8,2747.0,3.64033]
[1740062951246,0.7723,2747.6,2746.6,3.64081]
[1740062951453,5.24,2747.5,2747.0,3.64028]
[1740062951673,5.24,2747.5,2746.8,3.64056]
[1740062951905,8.8797,2747.5,2746.7,3.6407]
[1740062952203,3.64017,2747.2,2746.5,0.9311811]
[1740062952402,3.64035,2747.0,2746.5,0.1517811]
[1740062952714,8.88048,2746.9,2746.5,0.1517811]
[1740062952867,3.64086,2746.6,2746.5,0.1517811]
[1740062953069,5.24,2746.9,2746.5,0.1517811]
[1740062953294,0.524,2746.8,2746.5,0.1517811]
[1740062954367,5.24,2746.8,2746.6,3.64078]
[1740062954606,6.0679,2747.1,2746.6,3.64078]
[1740062954807,6.0679,2747.1,2746.7,3.64064]
[1740062955109,6.0679,2747.1,2746.5,0.1517811]
[1740062955333,3.64073,2746.7,2746.5,0.1517811]
[1740062955497,4.004933,2746.6,2746.5,0.1517811]
[1740062955699,0.364073,2746.6,2746.5,0.1517811]
[1740062956006,3.64081,2746.7,2746.5,0.1517811]
[1740062956207,3.64054,2746.9,2746.5,0.1517811]
[1740062956514,3.64073,2746.7,2746.5,0.1517811]
[1740062956803,3.64064,2746.8,2746.5,0.1517811]
[1740062957015,6.0674,2747.0,2746.5,0.1517811]
[1740062957168,0.970767,2746.9,2746.5,0.1517811]
[1740062957368,6.0674,2747.0,2746.5,0.1517811]
[1740062957609,9.70773,2747.0,2746.5,0.1517811]
[1740062957911,6.0674,2747.0,2746.5,0.1517811]
[1740062958271,3.64086,2746.6,2746.5,0.1517811]
[1740062958698,9.71046,2746.6,2746.5,0.1517811]
[1740062958898,11.045591,2746.6,2746.5,0.1517811]
[1740062960350,18.79736448,2746.6,2746.5,1.1e-06]
[1740062960478,18.79736448,2746.6,2744.9,0.7794]
[1740062960479,4.40305,2745.5,2744.9,0.7794]
[1740062960813,4.40305,2745.5,2744.0,5.32]
[1740062960814,3.64245,2745.4,2744.6,0.7794]
[1740062960974,5.24,2745.3,2744.7,3.6433]
[1740062961169,5.24,2745.3,2744.3,3.64384]
[1740062961170,3.64289,2745.1,2744.3,3.64384]
[1740062961368,5.24,2745.3,2743.7,5.05300913]
[1740062961369,5.24,2745.0,2744.4,3.64368]
[1740062961575,6.0455,2744.9,2743.9,4.42382]
[1740062961777,8.88334,2744.8,2744.0,3.64427]
[1740062961973,5.24,2744.8,2744.2,3.64396]
[1740062962174,3.644,2744.3,2743.7,0.1517811]
[1740062962399,0.7629,2744.2,2743.7,3.7963811]
[1740062962571,0.7629,2744.2,2743.7,0.1517811]
[1740062962778,0.7629,2744.6,2743.7,3.7964011]
[1740062963101,3.7629,2744.6,2743.9,3.64434]
[1740062963299,0.67629,2744.5,2743.7,0.1517811]
[1740062963497,0.7629,2744.6,2743.7,3.7963711]
[1740062963701,3.0,2744.7,2743.7,0.1517811]
[1740062964013,0.8159,2744.5,2743.7,0.1517811]
[1740062964214,0.8159,2744.5,2744.0,3.64428]
[1740062964714,0.8159,2744.5,2743.8,3.64454]
[1740062965012,0.8159,2744.5,2744.2,3.64403]
[1740062965183,5.24,2744.6,2744.5,3.64365]
[1740062965390,6.0548,2744.9,2744.4,3.64378]
[1740062965814,5.24,2744.9,2744.8,3.64325]
[1740062965998,5.24,2744.9,2744.6,3.6435]
[1740062966183,5.24,2744.9,2744.3,0.7762]
[1740062966383,5.24,2744.9,2743.9,0.37963211]
[1740062966384,5.24,2744.9,2744.5,3.6436]
[1740062966613,5.764,2744.9,2744.5,3.6436]
[1740062966800,5.24,2744.9,2744.3,3.64389]
[1740062967004,5.24,2744.9,2744.4,3.64377]
[1740062967199,5.24,2744.9,2743.9,1.15063211]
[1740062967200,8.88312,2744.9,2744.2,3.64402]
[1740062967404,8.88312,2744.9,2744.1,3.64414]
[1740062967584,1.252611,2744.8,2744.2,3.64403]
[1740062967784,5.24,2744.9,2744.6,3.64345]
[1740062967990,5.24,2745.2,2744.6,3.64345]
[1740062968274,5.24,2745.2,2745.0,3.6429]
[1740062968475,6.0548,2745.3,2744.6,3.64347]
[1740062968675,6.0548,2745.3,2744.6,3.64343]
[1740062968872,10.30292,2745.3,2744.6,7.28683]
[1740062969098,6.0548,2745.3,2744.9,3.6431]
[1740062969301,6.0548,2745.3,2745.2,3.64272]
[1740062969302,5.24,2745.3,2745.2,3.64272]
[1740062969506,5.24,2745.5,2745.0,3.64296]
[1740062970114,8.88244,2745.5,2744.8,3.64319]
[1740062970315,5.24,2745.5,2744.0,0.7794]
[1740062970551,5.8421,2745.4,2744.6,3.64343]
[1740062970847,5.24,2745.3,2744.6,7.28681]
[1740062971048,3.64275,2745.2,2744.4,3.64373]
[1740062971247,0.8125,2744.3,2744.1,3.6441]
[1740062971450,5.24,2744.2,2744.1,3.6441]
[1740062972051,5.24,2744.6,2744.5,3.64365]
[1740062972423,5.24,2745.0,2744.7,3.64325]
[1740062972614,5.24,2745.1,2744.7,3.64325]
[1740062973257,6.128259,2745.1,2744.7,3.64325]
[1740062973552,0.782,2744.8,2744.1,3.64409]
[1740062973751,9.66526,2744.8,2744.1,3.64411]
[1740062973925,9.66526,2744.8,2744.2,3.64404]
[1740062974148,9.66526,2744.8,2743.9,0.7794]
[1740062974149,3.64364,2744.6,2744.0,3.64431]
[1740062974466,3.64373,2744.5,2743.8,3.64454]
[1740062974663,7.79461,2745.4,2743.7,0.1517811]
[1740062974664,3.64423,2744.1,2743.7,0.1517811]
[1740062974826,8.88423,2744.1,2743.7,0.1517811]
[1740062975027,3.64433,2744.0,2743.7,0.1517811]
[1740062975228,4.43958,2743.8,2743.7,0.1517811]
[1740062975457,0.795,2743.8,2743.7,0.1517811]
[1740062975639,1.3985,2743.8,2743.7,0.1517811]
[1740062975850,5.24,2743.9,2743.7,0.1517811]
[1740062976340,5.24,2743.8,2743.7,0.1517811]
[1740062976542,12.69778,2743.8,2743.7,0.1517811]
[1740062977143,9.69778,2743.8,2743.7,0.1517811]
[1740062977387,6.0532,2743.8,2743.7,0.1517811]
[1740062977567,7.022951,2743.8,2743.7,0.1517811]
[1740062977924,5.24,2743.8,2743.7,0.1517811]
[1740062978060,0.8094,2744.1,2743.7,0.1517811]
[1740062978061,6.0494,2744.1,2743.7,3.7964911]
[1740062978435,6.0494,2744.1,2743.7,0.1517811]
[1740062979186,3.64458,2743.8,2743.7,0.1517811]
[1740062979328,3.0,2744.0,2743.7,0.1517811]
[1740062979536,5.24,2743.9,2743.7,0.1517811]
[1740062980052,5.24,2744.1,2743.8,3.64458]
[1740062980241,5.24,2744.1,2743.9,3.64442]
[1740062980938,5.24,2744.1,2744.0,3.64431]
[1740062981138,5.24,2744.4,2744.2,3.64404]
[1740062981637,5.24,2744.7,2744.3,3.6438]
[1740062981866,3.64359,2744.6,2744.0,7.28848]
[1740062982068,5.24,2744.5,2744.0,3.64423]
[1740062982533,5.24,2744.5,2743.9,0.7718]
[1740062982739,5.24,2744.5,2744.1,3.64409]
[1740062982968,5.24,2744.5,2744.1,3.64408]
[1740062983155,6.2250055,2744.5,2744.1,3.64408]
[1740062983779,6.2250055,2744.5,2743.9,0.7718]
[1740062983981,5.24,2744.5,2744.3,3.64387]
[1740062984170,5.24,2744.5,2744.4,3.64378]
[1740062984476,0.7828,2744.8,2744.4,3.64378]
[1740062984477,5.24,2744.8,2744.7,3.64338]
[1740062985241,5.24,2744.8,2744.6,3.64351]
[1740062985439,5.24,2744.8,2744.6,3.64342]
[1740062985674,5.24,2744.8,2744.7,3.64338]
[1740062986752,5.764,2744.8,2744.0,0.7794]
[1740062986954,5.24,2744.8,2744.7,3.64338]
[1740062987335,5.24,2744.8,2744.6,3.64351]
[1740062987535,5.24,2745.3,2745.0,3.64291]
[1740062987765,5.24,2745.3,2745.1,3.64284]
[1740062987965,5.24,2745.3,2745.2,3.64272]
[1740062988776,5.24,2745.3,2745.1,3.64284]
[1740062988777,5.24,2745.7,2745.5,3.64222]
[1740062988967,0.7876,2746.1,2745.5,3.64222]
[1740062989291,0.442907,2746.0,2745.5,3.64222]
[1740062989504,8.88186,2745.9,2745.3,3.64258]
[1740062989814,5.24,2745.9,2745.7,3.64205]
[1740062990092,5.24,2746.0,2745.8,3.64192]
[1740062990293,5.24,2746.0,2745.9,3.64179]
[1740062990516,0.7765,2746.4,2745.9,3.64179]
[1740062990517,5.24,2746.1,2745.9,3.64179]
[1740062990655,5.24,2746.1,2745.9,3.64172]
[1740062990855,5.24,2746.1,2745.8,3.64191]
[1740062991468,5.24,2746.1,2745.6,3.64211]
[1740062991657,9.769694,2746.1,2745.5,3.64227]
[1740062991977,3.64228,2745.6,2745.0,3.64287]
[1740062992395,6.015,2746.0,2745.4,3.64245]
[1740062992612,3.6418,2745.9,2745.3,3.64257]
[1740062992760,9.65673,2746.0,2745.4,3.64233]
[1740062992961,7.4336304,2746.0,2745.4,7.28479]
[1740062993191,7.4336304,2746.0,2744.6,0.7794]
[1740062993427,7.4336304,2746.0,2744.1,4.92050192]
[1740062993428,0.775,2745.4,2744.7,3.64338]
[1740062993601,3.64306,2745.0,2744.3,4.42322]
[1740062993796,5.24,2744.9,2744.3,0.7794]
[1740062993990,5.24,2744.9,2744.6,3.64342]
[1740062994218,5.24,2744.9,2744.8,4.42265]
[1740062994530,5.24,2745.6,2745.3,3.64258]
[1740062994832,5.24,2745.6,2745.5,3.64232]
[1740062995732,5.24,2745.6,2745.5,4.42172]
[1740062996030,5.24,2746.2,2745.2,0.7794]
[1740062996229,5.84633,2746.2,2745.7,3.64204]
[1740062996935,5.84633,2746.2,2745.9,3.64176]
[1740062997330,5.84633,2746.2,2745.7,3.642]
[1740062997521,5.84633,2746.2,2746.0,3.64165]
[1740062997717,5.24,2746.2,2746.0,3.64158]
[1740062997930,5.24,2746.2,2745.8,3.64184]
[1740062998230,5.24,2746.2,2746.0,3.64165]
[1740062998405,5.24,2746.2,2746.0,3.64156]
[1740062998610,5.24,2746.2,2745.8,3.64185]
[1740062998810,5.84633,2746.2,2745.9,3.64171]
[1740062999008,5.84633,2746.2,2745.7,3.64194]
[1740062999228,5.24,2746.2,2745.9,3.64175]
[1740062999610,5.24,2746.2,2745.9,3.64179]
[1740062999940,5.24,2746.2,2745.7,3.64193]
[1740063000246,3.64154,2746.1,2745.4,3.64233]
[1740063000451,8.88146,2746.2,2745.5,3.6423]
[1740063000657,3.64172,2746.0,2745.2,3.64263]
[1740063000959,3.642,2745.8,2745.0,3.64296]
[1740063001173,0.7771,2745.2,2744.6,3.64341]
[1740063001450,5.24,2745.1,2744.1,0.7794]
[1740063001658,5.24,2745.1,2745.0,3.64298]
[1740063001955,5.24,2745.1,2745.0,4.371578]
[1740063002155,5.24,2745.6,2745.5,3.64232]
[1740063002337,5.24,2745.9,2745.8,3.64189]
[1740063002541,5.24,2745.9,2745.7,3.64205]
[1740063002947,5.24,2745.9,2745.6,3.64218]
[1740063003253,5.24,2746.2,2746.0,3.64166]
[1740063003454,6.0662,2746.4,2745.9,3.64172]
[1740063003659,0.60662,2746.3,2745.4,0.7667]
[1740063003859,5.24,2746.2,2745.7,3.64203]
[1740063004058,5.24,2746.2,2745.9,3.64172]
[1740063004269,5.24,2746.2,2746.1,3.64152]
[1740063004615,5.24,2746.2,2745.9,3.64169]
[1740063004815,5.24,2746.2,2745.6,0.7794]
[1740063005052,5.24,2746.2,2745.9,3.64168]
[1740063005419,5.24,2746.2,2745.9,7.28337]
[1740063005616,5.24,2746.2,2745.7,3.64198]
[1740063005938,5.24,2746.2,2745.2,4.4221]
[1740063005939,3.64179,2745.9,2745.3,3.64248]
[1740063006141,3.64179,2745.9,2745.0,0.728598]
[1740063006142,4.44072,2745.7,2745.1,3.64279]
[1740063006344,0.7986,2745.7,2744.6,1.0576]
[1740063006525,5.24,2745.8,2745.7,3.64205]
[1740063006728,5.24,2746.0,2745.3,0.7714]
[1740063006928,5.24,2746.0,2745.4,3.64245]
[1740063007129,5.89626,2746.0,2745.2,3.64264]
[1740063007345,0.7633,2745.5,2745.0,3.6429]
[1740063007527,5.24,2745.4,2745.1,3.64278]
[1740063007740,3.64272,2745.2,2744.6,3.6434]
[1740063007936,7.28551,2745.2,2744.6,3.6434]
[1740063008164,8.88251,2745.4,2744.8,3.64324]
[1740063008330,5.24,2745.4,2745.1,3.64276]
[1740063008532,5.24,2745.4,2745.3,3.64258]
[1740063009029,5.24,2746.3,2745.8,3.64181]
[1740063009369,5.24,2746.3,2745.6,3.64208]
[1740063009370,8.88139,2746.3,2745.6,3.64208]
[1740063009556,3.64202,2745.8,2745.1,8.06487]
[1740063009725,3.64202,2745.8,2745.3,3.64247]
[1740063009726,5.24,2745.8,2745.3,3.64247]
[1740063009931,0.8221,2745.7,2744.9,3.64299]
[1740063010140,0.8221,2745.7,2745.0,3.64289]
[1740063010141,5.24,2745.6,2745.0,3.64289]
[1740063010426,3.64272,2745.2,2744.6,3.64339]
[1740063010664,8.88272,2745.2,2744.6,3.64339]
[1740063010965,8.88272,2745.2,2744.7,3.64337]
[1740063011468,0.7654,2745.1,2744.6,3.64342]
[1740063011664,0.7654,2745.1,2743.9,4.20503876]
[1740063011888,6.0054,2745.1,2744.0,0.42050388]
[1740063012184,6.0054,2745.1,2744.3,3.6438]
[1740063012383,9.64825,2745.1,2744.6,3.64342]
[1740063012551,9.64836,2745.1,2744.5,3.6436]
[1740063012948,6.0054,2745.1,2744.6,3.64349]
[1740063013473,6.0054,2745.1,2744.5,3.64352]
[1740063013884,3.64308,2745.0,2744.4,3.64369]
[1740063014286,3.64307,2745.0,2744.4,3.64369]
[1740063014587,3.64305,2745.0,2744.2,3.64396]
[1740063014787,6.970217,2745.1,2744.2,3.64402]
[1740063014988,6.970217,2745.1,2744.0,0.42050388]
[1740063014989,6.0054,2745.1,2744.0,0.42050388]
[1740063015148,3.64347,2744.7,2744.1,3.64411]
[1740063015350,3.64376,2744.5,2743.9,3.64436]
[1740063015551,5.24,2744.5,2743.9,3.64436]
[1740063015863,5.24,2744.5,2744.1,3.64411]
[1740063016174,5.24,2744.5,2743.9,3.64432]
[1740063016372,5.24,2744.5,2744.1,3.64416]
[1740063016694,0.60054,2745.0,2744.2,0.03644322]
[1740063016695,5.24,2745.0,2744.2,0.03644322]
[1740063016993,5.24,2745.0,2744.8,3.64323]
[1740063017179,3.64251,2745.4,2744.6,0.03643384]
[1740063017180,5.24,2745.4,2744.6,0.03643384]
[1740063017381,0.7545,2745.6,2745.3,3.64253]
[1740063017693,5.24,2745.8,2745.7,3.64205]
[1740063017893,0.7545,2746.3,2745.9,3.64177]
[1740063018051,5.9945,2746.3,2745.7,3.64196]
[1740063018391,5.9945,2746.3,2745.7,3.64195]
[1740063018755,5.9945,2746.3,2745.5,4.41996]
[1740063018956,3.64156,2746.1,2745.5,3.64219]
[1740063019156,9.63581,2746.3,2745.5,3.64219]
[1740063019354,3.64139,2746.2,2745.5,3.64226]
[1740063019567,8.88139,2746.2,2745.5,3.64226]
[1740063019775,5.24,2746.2,2745.3,0.364253]
[1740063019992,9.63576,2746.3,2745.7,3.64194]
[1740063020400,3.64174,2746.0,2745.3,3.64248]
[1740063020557,5.9945,2746.3,2745.1,4.40714]
[1740063020558,3.64204,2745.8,2745.1,4.40714]
[1740063020761,0.7563,2745.6,2744.7,4.40434]
[1740063020955,3.64269,2745.3,2744.7,3.64334]
[1740063021275,5.24,2745.5,2745.3,3.64258]
[1740063021491,3.64173,2746.0,2744.7,3.64338]
[1740063021492,5.24,2745.9,2744.7,3.64338]
[1740063021673,5.24,2745.9,2745.4,3.64245]
[1740063022002,3.64204,2745.8,2745.2,3.64262]
[1740063022306,5.9963,2746.0,2745.6,3.64208]
[1740063022667,3.64191,2745.9,2744.8,6.081]
[1740063022911,8.88175,2746.0,2745.4,3.64236]
[1740063023405,8.88169,2746.0,2745.4,3.64236]
[1740063023566,5.24,2746.0,2745.4,0.728501]
[1740063023764,5.24,2746.0,2745.0,3.64292]
[1740063023985,5.24,2746.0,2745.7,3.64193]
[1740063024294,0.7896,2746.3,2745.2,4.42205]
[1740063024469,4.43093,2746.3,2745.7,3.64204]
[1740063024861,4.43093,2746.3,2745.7,3.64198]
[1740063025063,0.7896,2746.3,2745.7,3.64198]
[1740063025399,0.7896,2746.3,2745.2,0.7794]
[1740063025400,3.64147,2746.2,2745.5,3.64224]
[1740063025610,0.7896,2746.3,2745.2,0.7794]
[1740063025611,3.64191,2745.9,2745.2,0.7794]
[1740063025777,3.64191,2745.9,2745.3,3.64252]
[1740063025973,3.64164,2746.1,2745.4,3.64234]
[1740063026172,0.7896,2746.3,2745.0,0.03642407]
[1740063026373,3.64182,2745.9,2745.4,3.64239]
[1740063026798,3.64193,2745.8,2745.2,3.64265]
[1740063027029,3.64182,2745.9,2745.4,3.64245]
[1740063027329,3.64172,2746.0,2745.4,3.64238]
[1740063027532,3.64184,2745.9,2745.4,3.64238]
[1740063028023,4.370185,2745.9,2745.4,3.64238]
[1740063028222,3.64184,2745.9,2745.2,3.64259]
[1740063028424,3.64184,2745.9,2745.3,3.64258]
[1740063028629,7.28372,2745.9,2745.3,3.64258]
[1740063028804,3.64179,2745.9,2745.3,3.64251]
[1740063029004,5.24,2746.0,2745.4,0.03642175]
[1740063029327,5.24,2746.0,2744.9,0.7732]
[1740063029546,3.64234,2745.5,2744.9,0.7732]
[1740063029890,3.64211,2745.7,2744.9,4.41622]
[1740063030091,6.0065,2746.0,2745.0,3.6794063]
[1740063030291,6.0065,2746.0,2745.3,3.6425]
[1740063030654,3.64188,2745.9,2745.3,7.28502]
[1740063030807,6.0065,2746.0,2745.3,4.371002]
[1740063031016,6.0065,2746.0,2745.5,3.64223]
[1740063031017,9.64816,2746.0,2745.5,3.64223]
[1740063031348,5.24,2746.0,2745.6,0.7558]
[1740063031490,0.7555,2746.5,2745.6,0.7558]
[1740063031491,0.7555,2746.5,2745.7,3.67835772]
[1740063031693,3.64034,2747.0,2746.3,3.64124]
[1740063031913,3.64088,2746.6,2746.0,3.64166]
[1740063032114,3.64088,2746.6,2746.0,0.36780719]
[1740063032446,3.64109,2746.5,2746.2,0.7794]
[1740063032648,3.64111,2746.5,2745.8,4.42119]
[1740063032935,3.6408,2746.7,2746.1,3.64149]
[1740063033152,3.64054,2746.9,2746.1,7.28293]
[1740063033343,3.64071,2746.8,2746.2,3.71863448]
[1740063033504,3.64069,2746.8,2746.2,3.71863448]
[1740063033690,3.64069,2746.8,2746.3,3.64126]
[1740063033892,3.64069,2746.8,2746.3,0.07732854]
[1740063034142,3.64069,2746.8,2746.1,3.6415]
[1740063034345,0.364069,2746.8,2746.4,0.07731261]
[1740063034494,3.6414,2746.2,2745.6,3.64207]
[1740063034695,3.6412,2746.4,2745.6,3.64207]
[1740063035059,3.64109,2746.5,2745.9,3.64171]
[1740063035211,3.64108,2746.5,2745.9,3.64171]
[1740063035412,3.64108,2746.5,2746.0,3.71905878]
[1740063035596,9.6337,2746.7,2746.0,4.09084466]
[1740063035597,5.9929,2746.7,2746.0,4.09084466]
[1740063035797,0.7969,2747.1,2746.5,3.64089]
[1740063036045,0.7969,2747.1,2746.2,4.42076]
[1740063036046,3.64042,2747.0,2746.2,4.42076]
[1740063036248,3.64042,2747.0,2746.6,0.07732318]
[1740063036561,3.64046,2746.9,2746.7,0.07730725]
[1740063036701,4.084196,2746.9,2746.2,4.42068]
[1740063036892,3.64046,2746.9,2746.8,0.07729132]
[1740063037122,4.4371,2747.1,2746.2,0.7794]
[1740063037324,3.64046,2746.9,2746.8,0.07729132]
[1740063037532,4.4371,2747.1,2746.4,3.64104]
[1740063037707,0.778,2747.5,2747.0,3.64028]
[1740063037906,3.63974,2747.5,2747.1,0.728061]
[1740063038106,0.778,2747.8,2747.1,0.07697487]
[1740063038335,0.778,2747.8,2746.5,5.32]
[1740063038336,3.64001,2747.3,2746.5,9.73328]
[1740063038542,3.64001,2747.3,2747.2,0.07626591]
[1740063038699,3.64015,2747.2,2746.7,3.64066]
[1740063038899,3.64043,2747.0,2746.7,0.87754962]
[1740063039141,3.64043,2747.0,2746.5,4.41331]
[1740063039142,3.64078,2746.7,2746.5,0.7724]
[1740063039344,3.64046,2746.9,2746.1,4.41421]
[1740063039503,3.64073,2746.7,2746.1,4.41421]
[1740063039900,5.24,2747.0,2746.3,4.20503876]
[1740063040405,0.7728,2746.7,2746.1,0.7728]
[1740063040640,4.41359,2746.7,2746.1,4.4143]
[1740063040837,4.41359,2746.7,2746.1,4.92367059]
[1740063041248,5.24,2747.0,2746.5,3.64097]
[1740063041430,5.24,2747.0,2746.1,4.92363059]
[1740063041747,8.88038,2747.0,2746.1,1.28222059]
[1740063041952,0.8141,2746.8,2746.1,0.50942059]
[1740063042264,3.64082,2746.7,2746.4,0.7538]
[1740063042420,3.64086,2746.6,2746.2,0.41509606]
[1740063042856,3.64053,2746.9,2746.2,0.41509606]
[1740063043073,3.64066,2746.8,2746.3,0.03640862]
[1740063043235,4.45419,2747.2,2746.3,0.86077915]
[1740063043447,4.45419,2747.2,2746.4,3.641]
[1740063043761,4.45419,2747.2,2746.3,3.64125]
[1740063043762,3.64036,2747.0,2746.3,3.64125]
[1740063044072,3.64083,2746.7,2746.2,0.41509606]
[1740063044249,3.64081,2746.7,2746.2,0.41509606]
[1740063044434,3.64094,2746.6,2746.1,0.50942059]